bitfinex/quotes_ETHUSD_20260313
["timestamp","ask_amount","ask_price","bid_price","bid_amount"]
[1773381381272,0.001,2110.8,2110.7,2.038]
[1773381382783,0.001,2110.8,2110.7,3.9722584]
[1773381383568,0.001,2110.8,2110.7,2.78781722]
[1773381384086,0.001,2110.8,2110.7,2.038]
[1773381384257,1.00923289,2110.7,2110.4,2.24208907]
[1773381384590,1.00923289,2110.7,2110.4,1.1856976]
[1773381384885,0.001,2110.8,2110.4,2.24210048]
[1773381385086,1.01023289,2110.8,2110.4,2.24210048]
[1773381385489,1.01023289,2110.8,2110.5,2.041]
[1773381385672,0.001,2110.8,2110.6,1.05640288]
[1773381387804,0.001,2110.8,2110.7,1.18444118]
[1773381390087,2.25263167,2111.2,2110.7,1.05640288]
[1773381390392,1.00923289,2111.1,2110.7,1.05640288]
[1773381392173,1.00923289,2111.1,2110.7,2.24080772]
[1773381392892,1.00923289,2111.1,2110.7,1.18440484]
[1773381393277,1.00923289,2111.1,2110.7,2.24080772]
[1773381393469,2.19345882,2111.1,2110.7,2.24080772]
[1773381393669,1.00923289,2111.0,2110.7,2.24080772]
[1773381394606,1.06844092,2111.2,2110.8,1.05750288]
[1773381394890,0.001,2110.9,2110.8,1.05750288]
[1773381399676,0.001,2110.9,2110.8,2.24188794]
[1773381403404,0.001,2110.9,2110.8,1.05750288]
[1773381403904,0.001,2110.9,2110.8,2.24188794]
[1773381404097,0.001,2110.9,2110.8,1.05750288]
[1773381404912,0.001,2110.9,2110.8,0.0011]
[1773381406111,0.00872878,2299.0,2110.9,0.99307095]
[1773381406112,0.9869114,2111.8,2110.9,0.99307095]
[1773381406294,0.9869114,2111.7,2111.1,0.99307095]
[1773381406500,0.9869114,2111.7,2111.2,3.04007095]
[1773381407512,0.9869114,2111.7,2111.3,0.99307095]
[1773381408516,0.9869114,2111.7,2111.4,2.17711944]
[1773381409010,0.9869114,2111.7,2111.4,0.99307095]
[1773381409195,2.17081057,2111.7,2111.4,0.99307095]
[1773381409399,0.9869114,2111.6,2111.2,4.22418682]
[1773381411595,0.9869114,2111.6,2111.2,3.26045007]
[1773381411811,0.9869114,2111.6,2111.3,0.9701031]
[1773381412630,0.9869114,2111.6,2111.2,4.20121897]
[1773381420240,0.9869114,2111.6,2111.4,0.0011]
[1773381425213,1.18388039,2111.7,2111.4,0.03041829]
[1773381425410,2.19693722,2111.7,2111.4,0.03041829]
[1773381425741,1.01305683,2111.7,2111.4,0.03041829]
[1773381425940,2.19693979,2111.7,2111.4,0.03041829]
[1773381426845,2.19693979,2111.7,2111.4,1.00052139]
[1773381427941,1.01305683,2111.7,2111.4,1.00052139]
[1773381428249,1.01305683,2111.6,2111.4,0.03041829]
[1773381431428,1.01305683,2111.6,2111.4,1.18513828]
[1773381431942,1.01305683,2111.7,2111.4,2.15524138]
[1773381434158,0.002,2111.5,2111.4,2.15524138]
[1773381434315,1.01305683,2111.7,2111.5,0.9701031]
[1773381434316,0.002,2111.7,2111.5,0.9701031]
[1773381435143,1.01405683,2112.0,2111.5,0.9701031]
[1773381436445,1.01305683,2111.9,2111.6,1.18393635]
[1773381436742,1.01305683,2111.9,2111.7,2.056]
[1773381436947,0.001,2112.0,2111.8,0.9701031]
[1773381437124,1.01305683,2112.2,2111.8,0.9701031]
[1773381437440,1.04861097,2112.2,2111.7,3.0261031]
[1773381438445,1.01305683,2112.2,2111.7,3.0261031]
[1773381438647,1.01305683,2112.1,2111.7,4.20993082]
[1773381439123,1.01305683,2112.1,2111.8,0.9701031]
[1773381440965,0.95290827,2112.0,2111.4,0.0011]
[1773381441121,0.91735413,2111.9,2111.4,0.0011]
[1773381441322,0.91735413,2111.7,2111.4,0.0011]
[1773381442828,0.91735413,2111.5,2111.4,0.0011]
[1773381443423,0.91735413,2111.5,2111.4,2.0581]
[1773381444059,0.91735413,2111.5,2111.1,0.0011]
[1773381445233,0.91735413,2111.4,2111.1,0.0011]
[1773381445433,1.18397672,2111.6,2111.1,0.93234825]
[1773381445637,1.18397672,2111.6,2111.3,0.93124825]
[1773381446146,0.91735413,2111.9,2111.3,0.93124825]
[1773381447156,0.91735413,2111.9,2111.6,0.001]
[1773381447365,0.91735413,2111.7,2111.6,0.001]
[1773381448068,1.18382422,2111.8,2111.6,0.001]
[1773381448573,0.91735413,2111.8,2111.6,0.001]
[1773381450082,2.13675491,2111.8,2111.6,0.001]
[1773381454247,0.91735413,2111.7,2111.6,0.001]
[1773381454448,0.91735413,2111.7,2111.4,0.001]
[1773381454949,0.91735413,2111.5,2111.4,0.001]
[1773381456986,2.13686696,2111.6,2111.4,0.001]
[1773381457193,2.10131282,2111.6,2111.4,0.001]
[1773381457396,2.13686696,2111.6,2111.4,0.001]
[1773381458084,0.91735413,2111.5,2111.1,0.0011]
[1773381458884,1.18404849,2111.4,2111.1,0.0011]
[1773381459181,2.10140262,2111.4,2111.1,0.0011]
[1773381459377,2.10140262,2111.4,2111.1,2.0531]
[1773381460555,2.10140262,2111.4,2111.3,0.0011]
[1773381460760,2.10240262,2111.4,2111.3,0.0011]
[1773381463489,0.91735413,2111.3,2111.0,0.0011]
[1773381464369,2.13200349,2111.2,2111.0,0.0011]
[1773381464697,2.13200349,2111.2,2111.0,2.0511]
[1773381464864,1.1841493,2111.3,2111.0,2.97604171]
[1773381465201,2.13199213,2111.3,2111.0,2.97604171]
[1773381466359,0.001,2111.4,2111.1,0.92494171]
[1773381466566,2.13175644,2111.7,2111.3,0.92494171]
[1773381467067,0.94784283,2111.6,2111.3,0.92494171]
[1773381467496,0.98339697,2111.6,2111.3,0.92494171]
[1773381467703,4.73541455,2111.8,2111.3,0.92494171]
[1773381467704,1.18385675,2111.8,2111.3,0.92494171]
[1773381467863,1.18385675,2111.8,2111.3,0.97230589]
[1773381468064,2.13169958,2111.8,2111.3,0.97230589]
[1773381468515,2.13363503,2111.9,2111.5,0.92494171]
[1773381469086,0.94984283,2111.9,2111.5,0.92494171]
[1773381469398,2.13361376,2111.9,2111.5,0.92494171]
[1773381470588,2.13361376,2111.9,2111.6,0.90776919]
[1773381470589,0.002,2111.9,2111.6,0.90776919]
[1773381470775,0.002,2111.9,2111.7,2.95476919]
[1773381470988,0.002,2111.9,2111.8,0.90776919]
[1773381471288,0.96936022,2111.9,2111.7,2.047]
[1773381471589,1.00291436,2111.8,2111.4,0.90776919]
[1773381472186,0.96936022,2112.1,2111.6,0.90876919]
[1773381472489,0.002,2111.7,2111.6,2.09270554]
[1773381472987,0.002,2111.7,2111.6,4.13970554]
[1773381473673,0.002,2111.7,2111.6,2.95576919]
[1773381474704,1.18567037,2112.1,2111.7,0.90776919]
[1773381474898,2.15303059,2112.1,2111.7,0.90776919]
[1773381477703,0.96936022,2112.1,2111.7,0.90776919]
[1773381477900,2.15304127,2112.1,2111.7,0.90776919]
[1773381480301,2.15304127,2112.1,2111.8,0.04735296]
[1773381480599,2.15304127,2112.1,2111.7,0.90776919]
[1773381480600,1.02654582,2112.0,2111.6,2.048]
[1773381481806,0.96736022,2111.8,2111.6,2.048]
[1773381482909,1.18376817,2111.9,2111.6,2.95576919]
[1773381483073,5.7024329,2112.0,2111.6,2.95576919]
[1773381483074,2.15111821,2112.0,2111.6,2.95576919]
[1773381484491,0.96736022,2111.9,2111.6,2.95576919]
[1773381485393,0.001,2111.8,2111.6,2.95576919]
[1773381485596,0.001,2111.8,2111.6,2.048]
[1773381485994,0.96836022,2111.8,2111.6,2.048]
[1773381487078,0.002,2112.1,2111.8,0.90776919]
[1773381487716,1.18566419,2112.1,2111.8,0.90776919]
[1773381488030,2.15302441,2112.1,2111.8,0.90776919]
[1773381488603,0.002,2112.1,2111.8,2.09158372]
[1773381489310,0.002,2112.1,2111.9,0.90776919]
[1773381492212,0.002,2112.1,2111.8,0.90776919]
[1773381492605,0.96936022,2112.1,2111.8,0.90776919]
[1773381493122,0.002,2112.1,2111.8,0.90776919]
[1773381493628,0.96936022,2112.1,2111.7,0.90776919]
[1773381494207,0.96936022,2112.1,2111.6,2.048]
[1773381494395,0.96736022,2111.9,2111.6,2.048]
[1773381495050,0.96736022,2111.9,2111.6,2.95576919]
[1773381495510,2.15118162,2111.9,2111.6,2.95576919]
[1773381495713,0.96736022,2111.8,2111.6,2.048]
[1773381497724,0.002,2111.7,2111.6,2.048]
[1773381499317,0.002,2111.7,2111.5,0.001]
[1773381500304,0.002,2111.7,2111.6,2.044]
[1773381506231,2.14028303,2111.9,2111.6,2.07948456]
[1773381506437,2.14028303,2111.9,2111.6,2.99899273]
[1773381507009,2.14028303,2111.9,2111.6,2.044]
[1773381509843,2.14028303,2111.9,2111.6,2.99899273]
[1773381510209,1.18576984,2111.9,2111.7,0.95499273]
[1773381510917,0.002,2112.1,2111.7,0.95499273]
[1773381511118,1.18565714,2112.1,2111.7,0.9904658]
[1773381511321,0.95451319,2112.0,2111.7,0.95499273]
[1773381511840,0.95451319,2112.0,2111.7,0.95609273]
[1773381513219,1.18565714,2112.1,2111.8,0.95499273]
[1773381513436,1.18565714,2112.1,2111.8,0.99046215]
[1773381515046,1.18565714,2112.1,2111.7,0.95609273]
[1773381515047,0.95651319,2112.1,2111.7,0.95609273]
[1773381515218,0.95651319,2112.1,2111.7,0.0011]
[1773381515843,0.95651319,2112.1,2111.5,0.001]
[1773381515844,0.95451319,2111.9,2111.5,0.001]
[1773381517948,0.95451319,2111.7,2111.5,0.001]
[1773381520448,2.13844954,2111.6,2111.5,0.001]
[1773381520743,1.18393635,2111.6,2111.5,0.001]
[1773381522962,1.18393635,2111.6,2111.3,0.001]
[1773381522963,0.95451319,2111.5,2111.3,0.001]
[1773381523265,0.95451319,2111.3,2111.0,0.0011]
[1773381523432,0.95451319,2111.3,2111.0,0.0021]
[1773381524653,1.18416066,2111.2,2111.0,0.0021]
[1773381524841,0.95708804,2111.1,2111.0,0.0021]
[1773381526866,2.14130479,2111.1,2111.0,0.0021]
[1773381528066,0.95708804,2111.1,2111.0,0.0021]
[1773381528268,1.18419899,2111.2,2111.0,0.9678964]
[1773381528470,2.14122984,2111.3,2111.0,0.9678964]
[1773381529568,2.14122984,2111.3,2111.0,0.9668964]
[1773381530778,8.12255635,2111.9,2111.0,0.9668964]
[1773381530779,1.18382422,2111.8,2111.3,0.951233]
[1773381530981,0.97918426,2111.5,2111.1,0.952233]
[1773381531180,0.97918426,2111.5,2111.0,1.18533089]
[1773381531380,0.97918426,2111.5,2111.1,0.001]
[1773381531562,0.97918426,2111.5,2111.1,0.952233]
[1773381533278,2.22242269,2111.5,2111.2,0.001]
[1773381536785,0.97918426,2111.4,2111.2,0.001]
[1773381536965,0.97918426,2111.4,2111.2,0.0021]
[1773381537165,0.001,2111.3,2111.2,0.0021]
[1773381541684,2.16316226,2111.6,2111.2,0.953333]
[1773381541865,5.71463689,2111.8,2111.2,0.953333]
[1773381542069,0.002,2111.9,2111.6,0.951233]
[1773381542277,2.16495507,2111.9,2111.7,2.036]
[1773381542476,0.97918426,2111.7,2111.2,0.0011]
[1773381542678,0.97918426,2111.5,2111.3,0.001]
[1773381543671,0.97918426,2111.5,2111.4,2.032]
[1773381544075,0.97918426,2111.5,2111.3,0.001]
[1773381545289,0.97918426,2111.5,2111.3,2.035]
[1773381548486,0.97918426,2111.5,2111.3,2.034]
[1773381549393,0.97918426,2111.5,2111.3,2.035]
[1773381549689,1.18394382,2111.6,2111.5,0.0011]
[1773381550093,1.18394382,2111.6,2111.5,0.0021]
[1773381553097,2.16312808,2111.6,2111.5,0.0021]
[1773381553705,0.97918426,2111.6,2111.5,0.0021]
[1773381555611,2.16312061,2111.6,2111.5,0.0021]
[1773381555916,0.97918426,2111.6,2111.5,0.0021]
[1773381557079,0.05919401,2111.7,2111.6,0.951233]
[1773381557282,1.18383077,2111.8,2111.6,0.001]
[1773381557790,1.03837827,2111.7,2111.5,0.0011]
[1773381559904,2.22231381,2111.7,2111.5,0.0011]
[1773381560120,0.97918426,2111.6,2111.5,0.0011]
[1773381561135,0.97918426,2111.6,2111.2,0.0011]
[1773381561904,2.13050664,2111.5,2111.2,0.0011]
[1773381562306,2.18970626,2111.5,2111.2,2.0361]
[1773381562920,2.19170626,2111.5,2111.2,2.0361]
[1773381566635,2.19170626,2111.5,2111.2,2.92926245]
[1773381566930,2.19170626,2111.5,2111.3,0.89316245]
[1773381566931,1.24519324,2111.5,2111.3,0.89316245]
[1773381567237,2.13250784,2111.5,2111.2,2.0361]
[1773381568918,0.94651422,2111.4,2111.0,0.0011]
[1773381569922,1.00571664,2111.4,2111.0,0.0011]
[1773381570123,1.00571664,2111.4,2111.0,2.0331]
[1773381573544,2.1306188,2111.3,2111.0,2.0331]
[1773381574647,2.1306188,2111.3,2111.0,2.92626245]
[1773381576311,2.1306188,2111.3,2111.2,0.001]
[1773381576312,1.18410458,2111.3,2111.2,0.001]
[1773381576658,2.1306188,2111.3,2111.2,0.001]
[1773381576815,0.94651422,2111.3,2111.2,0.001]
[1773381577011,2.1306188,2111.3,2111.2,0.001]
[1773381581649,2.18982402,2111.3,2111.2,0.001]
[1773381582026,0.94651422,2111.2,2110.8,0.89426245]
[1773381582226,0.94651422,2111.2,2110.7,0.0011]
[1773381582833,1.00572505,2111.1,2110.7,0.25420441]
[1773381583551,1.00572505,2111.1,2110.8,2.024]
[1773381584432,1.18427285,2111.0,2110.8,2.024]
[1773381585751,2.18998813,2111.1,2110.8,2.024]
[1773381588234,2.18998813,2111.1,2110.8,2.27541835]
[1773381588432,2.18998813,2111.1,2111.0,0.0011]
[1773381589122,0.92805729,2111.0,2110.7,0.0011]
[1773381590365,0.92805729,2111.0,2110.8,2.025]
[1773381590983,2.07836137,2110.9,2110.8,2.025]
[1773381591134,0.79749188,2110.8,2110.5,0.25144497]
[1773381591459,2.07836137,2110.9,2110.5,0.25144497]
[1773381591666,0.89403242,2110.8,2110.5,0.25144497]
[1773381592662,0.89403242,2110.7,2110.5,2.0041]
[1773381595687,0.89403242,2110.7,2110.1,0.0011]
[1773381595688,0.89403242,2110.5,2110.1,0.0011]
[1773381595959,0.89403242,2110.5,2110.2,0.0011]
[1773381596170,0.89403242,2110.5,2110.2,1.9981]
[1773381597569,2.10383168,2110.4,2110.2,1.9981]
[1773381597759,0.91922213,2110.3,2110.2,1.997]
[1773381598152,0.91922213,2110.3,2110.1,0.0011]
[1773381598483,0.91922213,2110.3,2110.1,0.0022]
[1773381599372,0.91922213,2110.3,2110.1,2.0062]
[1773381601167,4.73809695,2110.6,2110.1,2.1013597]
[1773381601168,0.91922213,2110.4,2110.1,2.1013597]
[1773381601373,2.10372431,2110.6,2110.2,0.09602865]
[1773381601569,0.91922213,2110.5,2110.2,0.0011]
[1773381601769,0.91922213,2110.5,2110.3,0.0011]
[1773381601966,0.001,2110.9,2110.3,0.0011]
[1773381601967,2.10459369,2110.9,2110.3,0.09492865]
[1773381602173,0.97844138,2110.8,2110.3,0.09492865]
[1773381602377,0.97844418,2110.7,2110.4,0.0011]
[1773381602553,0.97844418,2110.7,2110.2,0.09581068]
[1773381603417,0.91922213,2110.7,2110.2,0.09581068]
[1773381603685,0.001,2110.9,2110.4,0.09448579]
[1773381603852,0.001,2110.9,2110.6,0.09448579]
[1773381604275,0.92022213,2110.9,2110.6,0.0011]
[1773381604465,0.92022213,2110.9,2110.1,1.18587105]
[1773381604466,0.91867213,2110.7,2110.1,1.18587105]
[1773381604665,0.91867213,2110.5,2110.1,2.0131]
[1773381604979,0.91867213,2110.7,2110.2,0.09536535]
[1773381605184,0.97888857,2110.9,2110.3,0.09536535]
[1773381606050,2.10404697,2110.9,2110.4,1.18460955]
[1773381606251,1.18537484,2110.9,2110.4,1.18460955]
[1773381606450,0.91867213,2110.8,2110.4,1.18460955]
[1773381607286,0.91867213,2110.8,2110.3,1.27999024]
[1773381607489,0.91867213,2110.8,2110.4,0.04738438]
[1773381608366,0.06021644,2110.9,2110.5,0.09450941]
[1773381609581,0.001,2110.9,2110.5,0.09450941]
[1773381610389,0.001,2110.9,2110.6,1.18449729]
[1773381610589,0.001,2110.9,2110.7,2.017]
[1773381611261,0.97888857,2110.9,2110.7,2.017]
[1773381612062,0.97888857,2110.9,2110.3,1.18466233]
[1773381612263,0.97888857,2110.9,2110.2,1.27856746]
[1773381612463,0.91867213,2110.7,2110.2,1.18471715]
[1773381612690,0.97789418,2110.7,2110.1,1.18584372]
[1773381612995,0.97789418,2110.7,2110.4,0.0011]
[1773381613197,0.97889418,2110.7,2110.4,0.0011]
[1773381613368,0.97889418,2110.7,2110.5,2.018]
[1773381614698,0.001,2110.7,2110.6,0.09322531]
[1773381615011,1.18536065,2110.9,2110.6,0.09322531]
[1773381615012,0.001,2110.9,2110.6,0.09322531]
[1773381615162,1.18533678,2110.9,2110.6,0.09322531]
[1773381615368,0.97839138,2110.8,2110.5,2.018]
[1773381616466,2.10361331,2110.7,2110.5,2.018]
[1773381617299,2.16283536,2110.7,2110.5,2.018]
[1773381617479,1.24366323,2110.7,2110.5,2.018]
[1773381618494,1.18444118,2110.7,2110.5,2.018]
[1773381618984,0.91917213,2110.7,2110.5,2.018]
[1773381619186,0.97839418,2110.7,2110.5,2.018]
[1773381621092,2.16284534,2110.7,2110.5,2.018]
[1773381622484,0.05922205,2110.7,2110.5,3.20255342]
[1773381622794,0.94441781,2110.9,2110.6,0.08996494]
[1773381622795,2.12874745,2110.9,2110.6,0.08996494]
[1773381622980,0.001,2110.9,2110.6,0.08996494]
[1773381623297,1.1842464,2111.1,2110.8,0.08896494]
[1773381623520,2.12766421,2111.1,2110.6,1.27317415]
[1773381624199,0.94341781,2110.9,2110.4,0.0011]
[1773381624386,0.94341781,2110.9,2110.6,2.018]
[1773381624576,0.79749188,2110.8,2110.4,0.0011]
[1773381624896,0.94341781,2110.7,2110.4,0.0011]
[1773381625096,1.18432895,2110.9,2110.5,1.2730293]
[1773381625273,1.18432895,2110.9,2110.5,0.08849266]
[1773381625473,2.12774676,2110.9,2110.7,0.0011]
[1773381625673,2.12874676,2110.9,2110.7,0.0011]
[1773381626497,0.94341781,2110.8,2110.7,0.0011]
[1773381627282,2.12780287,2110.8,2110.7,0.0011]
[1773381628097,1.18438506,2110.8,2110.5,0.0011]
[1773381628269,0.94341781,2110.7,2110.5,0.0011]
[1773381629400,2.12786194,2110.7,2110.5,1.9961]
[1773381630797,0.94341781,2110.6,2110.5,1.9961]
[1773381631101,0.94341781,2110.6,2110.4,0.0011]
[1773381631503,2.12793342,2110.6,2110.4,0.0011]
[1773381631691,0.94341781,2110.5,2110.4,0.0011]
[1773381631996,0.94341781,2110.5,2110.2,0.0011]
[1773381632597,0.94341781,2110.5,2110.3,2.001]
[1773381632798,0.94341781,2110.5,2110.1,0.0011]
[1773381633994,0.94341781,2110.3,2110.1,0.0011]
[1773381636311,1.18472182,2110.2,2110.1,0.0011]
[1773381636610,2.12813963,2110.2,2110.1,0.0011]
[1773381638196,0.94341781,2110.7,2110.1,0.15378945]
[1773381638398,0.94341781,2110.6,2110.3,0.0011]
[1773381638708,4.73791071,2110.7,2110.3,0.15359183]
[1773381638709,1.18444118,2110.7,2110.3,0.15359183]
[1773381641015,1.1853425,2110.9,2110.4,0.15110262]
[1773381641218,2.12876031,2110.9,2110.4,0.15110262]
[1773381641690,0.94441781,2110.9,2110.4,0.15110262]
[1773381641891,1.18533399,2110.9,2110.4,0.15110262]
[1773381642421,2.1287518,2110.9,2110.4,0.15110262]
[1773381642583,2.12733034,2110.9,2110.4,0.15110262]
[1773381642989,0.94341781,2110.8,2110.4,1.33570626]
[1773381643213,0.94341781,2110.8,2110.3,1.18574826]
[1773381643387,0.94341781,2110.8,2110.3,1.33628831]
[1773381643586,0.94341781,2110.8,2110.3,0.15164005]
[1773381643790,0.94341781,2110.8,2110.3,1.33630111]
[1773381644282,0.94341781,2110.8,2110.3,1.33594454]
[1773381645284,0.94341781,2110.8,2110.4,0.15018348]
[1773381645285,1.18444118,2110.7,2110.4,0.15018348]
[1773381645717,2.12784801,2110.8,2110.4,0.15018348]
[1773381645920,0.88668998,2110.7,2110.3,0.0011]
[1773381646295,0.88668998,2110.7,2110.3,0.15093077]
[1773381647523,2.07113837,2110.7,2110.3,1.33558441]
[1773381647724,0.88668998,2111.1,2110.4,0.14966519]
[1773381647932,0.88668998,2111.0,2110.4,0.14966519]
[1773381649931,1.18432895,2110.9,2110.4,0.14966519]
[1773381650114,0.88668998,2110.8,2110.4,0.14966519]
[1773381650535,0.88668998,2110.8,2110.4,1.33426308]
[1773381651211,0.88668998,2110.8,2110.4,1.33536308]
[1773381651415,0.001,2110.6,2110.4,1.33536308]
[1773381651620,0.001,2110.6,2110.4,0.15076519]
[1773381652133,0.001,2110.6,2110.4,1.33536708]
[1773381653426,0.001,2110.6,2110.4,0.15076519]
[1773381653632,0.001,2110.6,2110.4,1.33536472]
[1773381654728,0.001,2110.6,2110.5,0.14834954]
[1773381654912,1.18433024,2110.9,2110.5,0.14734954]
[1773381655232,1.18433024,2110.9,2110.7,0.14734954]
[1773381655712,0.001,2111.2,2110.7,0.14734954]
[1773381655713,2.0972982,2111.2,2110.7,0.14734954]
[1773381655911,0.91212551,2111.1,2110.6,2.009]
[1773381656509,1.18427285,2111.0,2110.6,2.009]
[1773381656709,0.91212551,2110.9,2110.6,2.009]
[1773381659337,2.09646406,2110.9,2110.6,2.009]
[1773381660156,2.09634226,2111.1,2110.7,0.107113]
[1773381660446,0.91212551,2110.8,2110.4,0.0011]
[1773381660910,2.09656669,2110.7,2110.4,0.0011]
[1773381661236,0.91212551,2110.7,2110.4,0.0011]
[1773381661638,0.91212551,2110.7,2110.5,2.01]
[1773381663330,0.91212551,2110.6,2110.3,0.0011]
[1773381664511,0.91212551,2110.6,2110.4,2.01]
[1773381665642,2.09663717,2110.6,2110.4,2.01]
[1773381665842,0.91212551,2110.5,2110.4,2.01]
[1773381668430,0.91212551,2110.5,2110.3,0.0011]
[1773381668431,0.91212551,2110.4,2110.3,0.0011]
[1773381670429,2.09673506,2110.4,2110.3,0.0011]
[1773381671531,0.91212551,2110.3,2110.1,0.0011]
[1773381672452,2.0968251,2110.3,2110.1,0.0011]
[1773381673137,0.91212551,2110.2,2110.1,0.0011]
[1773381677353,2.09673506,2110.4,2110.1,0.0011]
[1773381677554,0.91212551,2110.3,2110.1,0.0011]
[1773381679860,2.09683256,2110.3,2110.1,0.0011]
[1773381681264,1.18470705,2110.3,2110.1,0.0011]
[1773381681450,1.18470705,2110.3,2110.1,0.05910611]
[1773381681648,4.73852661,2110.4,2110.1,0.05910611]
[1773381681649,2.1165846,2110.4,2110.1,0.05910611]
[1773381681848,0.93294919,2110.5,2110.1,0.05910611]
[1773381683241,0.93294919,2110.5,2110.1,0.0011]
[1773381683636,0.93194919,2110.4,2110.1,0.0011]
[1773381684666,2.11661487,2110.3,2110.1,0.0011]
[1773381686669,4.73852128,2110.4,2109.7,0.0011]
[1773381686670,0.93194919,2109.9,2109.7,0.0011]
[1773381686882,0.93194919,2109.6,2109.2,0.05853811]
[1773381687552,0.93194919,2109.6,2109.0,0.05843161]
[1773381687758,0.93194919,2109.6,2109.1,2.002]
[1773381688067,0.93194919,2109.2,2108.3,0.79906892]
[1773381688276,0.93194919,2109.2,2108.5,3.15949429]
[1773381688567,0.95863853,2109.4,2108.5,3.95856321]
[1773381688749,2.14386585,2109.3,2108.5,3.95856321]
[1773381689069,0.95863853,2109.2,2108.6,2.002]
[1773381690859,0.95863853,2109.2,2108.7,1.18556456]
[1773381694374,2.14392791,2109.2,2108.7,1.18556456]
[1773381694575,0.95863853,2109.2,2108.6,3.18757718]
[1773381695183,2.14373774,2109.6,2108.7,0.79906892]
[1773381695575,0.95863853,2109.5,2108.7,0.79906892]
[1773381695753,0.95863853,2109.5,2108.6,3.18757718]
[1773381695948,0.95863853,2109.5,2108.6,1.18557718]
[1773381696162,0.95863853,2109.3,2108.7,2.002]
[1773381698473,0.95863853,2109.5,2108.9,0.07750253]
[1773381698652,2.1437565,2109.5,2108.9,0.07750253]
[1773381699864,0.93194919,2109.4,2108.9,0.07750253]
[1773381700079,0.93194919,2109.4,2109.0,0.10739376]
[1773381700284,0.93194919,2109.4,2108.8,1.26295798]
[1773381700474,2.11717651,2109.3,2108.9,0.0773975]
[1773381700669,0.93194919,2109.3,2108.9,0.0773975]
[1773381701554,0.93194919,2109.3,2108.9,0.0784975]
[1773381701755,0.93294919,2109.3,2108.9,0.0784975]
[1773381703181,0.90824352,2109.2,2108.9,0.0011]
[1773381704487,1.18623732,2109.3,2108.9,0.25519616]
[1773381704703,0.001,2109.3,2108.9,0.25519616]
[1773381705063,1.18622889,2109.3,2108.9,0.25519616]
[1773381705263,2.14141275,2109.3,2108.9,0.25519616]
[1773381705501,0.95518386,2109.2,2108.9,0.0011]
[1773381708494,0.95518386,2109.2,2108.9,0.2550777]
[1773381709693,2.14047991,2109.2,2108.9,0.0011]
[1773381711809,0.93463621,2109.1,2108.7,2.002]
[1773381712179,0.93463621,2108.9,2108.7,2.002]
[1773381714185,2.1200903,2108.9,2108.7,2.002]
[1773381716426,0.93463621,2108.7,2108.4,0.0011]
[1773381717585,0.93463621,2108.7,2108.5,2.005]
[1773381718529,0.93463621,2108.5,2108.4,0.0011]
[1773381719635,0.93463621,2108.5,2108.0,1.43958955]
[1773381719834,0.93463621,2108.5,2108.2,2.0]
[1773381720196,0.93463621,2108.5,2107.9,1.18599842]
[1773381720197,0.93463621,2108.5,2108.0,0.25476594]
[1773381720708,0.93463621,2108.4,2108.0,1.44072281]
[1773381721616,0.93463621,2108.8,2108.2,0.28451875]
[1773381722698,2.12020077,2108.7,2108.3,1.18578949]
[1773381722910,0.93463621,2108.6,2108.2,1.47032281]
[1773381723801,0.93463621,2108.6,2108.3,2.001]
[1773381724013,0.93463621,2108.6,2108.3,2.28547415]
[1773381724645,0.93463621,2108.9,2108.4,0.2844511]
[1773381724818,0.93463621,2108.9,2108.5,1.47012812]
[1773381725308,1.18639774,2109.0,2108.6,0.2844511]
[1773381725710,1.18639889,2109.0,2108.6,0.2844511]
[1773381725924,0.93563621,2109.0,2108.6,0.2844511]
[1773381726222,0.93563621,2109.0,2108.6,0.28442736]
[1773381727034,0.93563621,2109.0,2108.8,0.0011]
[1773381727197,0.93563621,2109.0,2108.9,2.001]
[1773381728302,0.93463621,2108.9,2108.5,0.0011]
[1773381728552,0.93463621,2108.9,2108.5,1.18676967]
[1773381728905,0.93463621,2108.9,2108.5,1.51856721]
[1773381729100,0.93563621,2109.0,2108.6,0.28437046]
[1773381729506,0.93463621,2108.8,2108.5,0.0011]
[1773381729705,0.93463621,2108.8,2108.3,0.0011]
[1773381730545,0.93463621,2108.6,2108.3,0.0011]
[1773381731201,0.93463621,2108.4,2108.3,0.0011]
[1773381731406,0.93463621,2108.4,2107.8,0.28432706]
[1773381731838,0.93463621,2108.4,2107.8,1.47039483]
[1773381732043,0.93463621,2108.4,2107.8,1.47039172]
[1773381732242,0.93463621,2108.4,2107.4,4.7451367]
[1773381732243,0.93463621,2108.1,2107.4,1.47058756]
[1773381733023,0.93463621,2107.9,2107.5,2.0]
[1773381733542,2.12046693,2108.3,2107.7,0.28426417]
[1773381733842,0.93463621,2108.2,2107.7,0.28426417]
[1773381735839,2.12048415,2108.2,2107.7,1.47034761]
[1773381736009,2.12048415,2108.2,2107.8,0.04744283]
[1773381736010,0.93463621,2108.2,2107.8,0.04744283]
[1773381736212,0.93463621,2108.2,2107.8,0.33009542]
[1773381736924,0.93463621,2108.2,2107.8,0.28265259]
[1773381738542,0.93463621,2108.2,2107.7,0.28033159]
[1773381739922,0.93463621,2108.2,2108.0,0.0011]
[1773381740125,0.93563621,2108.2,2108.1,1.999]
[1773381740423,2.12148195,2108.2,2108.1,1.999]
[1773381740621,0.93563621,2108.2,2108.1,1.999]
[1773381741136,0.93563621,2108.2,2108.0,0.0011]
[1773381741308,0.94469405,2108.1,2108.0,0.0011]
[1773381741512,0.001,2108.2,2108.0,0.0011]
[1773381742325,0.94569405,2108.2,2108.1,1.999]
[1773381743513,2.13153979,2108.2,2108.1,1.999]
[1773381743713,2.13153979,2108.2,2108.0,0.0011]
[1773381743714,0.94469405,2108.1,2108.0,0.0011]
[1773381744122,0.94469405,2108.1,2107.8,0.0011]
[1773381744624,0.94469405,2108.0,2107.8,0.0011]
[1773381745131,0.94469405,2108.0,2107.9,1.998]
[1773381746765,2.13158333,2108.2,2107.9,1.998]
[1773381746921,2.13158333,2108.2,2107.9,3.48314675]
[1773381746922,0.001,2108.2,2107.9,3.48314675]
[1773381747239,1.18684726,2108.2,2107.9,2.29713327]
[1773381747437,0.94569405,2108.2,2107.9,1.998]
[1773381747746,2.13155177,2108.2,2107.9,1.998]
[1773381752162,0.94469405,2108.1,2107.9,1.998]
[1773381752535,0.94469405,2108.1,2108.0,0.0011]
[1773381752935,0.94569405,2108.1,2108.0,0.0011]
[1773381753145,0.94569405,2108.1,2107.8,0.0011]
[1773381754346,2.13163849,2108.1,2107.9,1.997]